bitfinex-derivatives/quotes_BTCF0:USTF0_20251225
["timestamp","ask_amount","ask_price","bid_price","bid_amount"]
[1766674350986,0.02742072,87777.0,87762.0,0.0114012]
[1766674351187,0.0113996,87775.0,87762.0,0.0114012]
[1766674354286,0.0113996,87775.0,87760.0,0.0001708]
[1766674354287,0.0113995,87776.0,87761.0,0.0114013]
[1766674354597,0.02515987,87775.0,87761.0,0.0114013]
[1766674354895,0.0113995,87776.0,87761.0,0.0114013]
[1766674355495,0.0113997,87774.0,87761.0,0.0114013]
[1766674355699,0.02742072,87777.0,87761.0,0.0114013]
[1766674355890,0.02515997,87776.0,87761.0,0.0114013]
[1766674356196,0.0113997,87774.0,87761.0,0.0114013]
[1766674356396,0.02742072,87777.0,87760.0,0.0001708]
[1766674356601,0.0114005,87768.0,87760.0,0.0001708]
[1766674356789,0.02742072,87777.0,87760.0,0.0001708]
[1766674356988,0.02516144,87776.0,87760.0,0.0001708]
[1766674357190,0.02516144,87775.0,87760.0,0.0001708]
[1766674357399,0.02516144,87774.0,87760.0,0.0001708]
[1766674357599,0.02742072,87777.0,87760.0,0.0001708]
[1766674357799,0.02516143,87776.0,87760.0,0.0001708]
[1766674357999,0.02516143,87775.0,87760.0,0.0001708]
[1766674358202,0.0114001,87772.0,87760.0,0.0001708]
[1766674362307,0.0113996,87775.0,87760.0,0.0001708]
[1766674362602,0.02515914,87774.0,87760.0,0.0001708]
[1766674362790,0.0113996,87775.0,87761.0,0.00356496]
[1766674362989,0.0113996,87775.0,87760.0,0.0001708]
[1766674362990,0.02515914,87774.0,87762.0,0.00356496]
[1766674363190,0.02742072,87777.0,87763.0,0.00356496]
[1766674363394,0.02515878,87776.0,87760.0,0.0001708]
[1766674363599,0.02515878,87775.0,87760.0,0.0001708]
[1766674363803,0.02742072,87777.0,87760.0,0.0001708]
[1766674363804,0.02515878,87774.0,87760.0,0.0001708]
[1766674364002,0.0113998,87774.0,87760.0,0.0001708]
[1766674365305,0.02515849,87773.0,87760.0,0.0001708]
[1766674365502,0.0113998,87774.0,87760.0,0.0001708]
[1766674365701,0.02515825,87773.0,87760.0,0.0001708]
[1766674365907,0.0113998,87774.0,87760.0,0.0001708]
[1766674367010,0.03882012,87777.0,87761.0,0.0114013]
[1766674369799,0.03882012,87777.0,87760.0,0.0001708]
[1766674370005,0.02742072,87777.0,87760.0,0.0001708]
[1766674370307,0.02742072,87777.0,87764.0,0.0114009]
[1766674372908,0.02742072,87777.0,87761.0,0.0114013]
[1766674373209,0.0113995,87776.0,87760.0,0.0001708]
[1766674374216,0.0113995,87776.0,87760.0,0.0115722]
[1766674375517,0.0113995,87776.0,87761.0,0.00356485]
[1766674375713,0.0113998,87774.0,87762.0,0.00356485]
[1766674376015,0.02742072,87777.0,87760.0,0.0115722]
[1766674376919,0.02742072,87777.0,87732.0,0.0114051]
[1766674376920,0.02742072,87777.0,87748.0,0.0466583]
[1766674377112,0.0114002,87770.0,87756.0,0.011402]
[1766674377313,0.02742072,87777.0,87756.0,0.011402]
[1766674377513,0.0114003,87770.0,87756.0,0.011402]
[1766674377710,0.02742072,87777.0,87750.0,0.08562194]
[1766674377907,0.02514446,87776.0,87754.0,0.0114022]
[1766674378107,0.02742072,87777.0,87754.0,0.0114022]
[1766674378308,0.0114005,87768.0,87754.0,0.0114022]
[1766674378810,0.0114009,87765.0,87751.0,0.0114026]
[1766674380016,0.0114006,87767.0,87748.0,0.03772]
[1766674380217,0.00017087,87766.0,87748.0,0.03772]
[1766674380816,0.01524,87768.0,87753.0,0.0114023]
[1766674381220,0.01524,87768.0,87748.0,0.03772]
[1766674381517,0.01524,87768.0,87753.0,0.0114023]
[1766674381718,0.01524,87768.0,87755.0,0.0114021]
[1766674382223,0.0266405,87768.0,87753.0,0.00017087]
[1766674384424,0.0266405,87768.0,87754.0,0.0114022]
[1766674385922,0.0155177,87768.0,87754.0,0.0114022]
[1766674387226,0.0006876,87768.0,87753.0,0.00017087]
[1766674388125,0.0006876,87768.0,87754.0,0.003565]
[1766674388316,0.0006876,87768.0,87755.0,0.003565]
[1766674388515,0.0006876,87768.0,87756.0,0.003565]
[1766674388816,0.0006876,87768.0,87757.0,0.003565]
[1766674389016,0.0006876,87768.0,87758.0,0.003565]
[1766674389220,0.0006876,87768.0,87759.0,0.003565]
[1766674389424,0.0006876,87768.0,87760.0,0.003565]
[1766674389725,0.0006876,87768.0,87761.0,0.003565]
[1766674389928,0.0006876,87768.0,87762.0,0.003565]
[1766674390125,0.0006876,87768.0,87754.0,0.0114023]
[1766674391926,0.0006876,87768.0,87753.0,0.00017087]
[1766674393232,0.0684805,87768.0,87753.0,0.01157317]
[1766674393631,0.0684805,87768.0,87755.0,0.0114021]
[1766674394831,0.0684805,87768.0,87754.0,0.0114023]
[1766674395832,0.04994249,87768.0,87754.0,0.0114023]
[1766674399134,0.03511208,87768.0,87754.0,0.0114023]
[1766674402134,0.03511208,87768.0,87755.0,0.003565]
[1766674402323,0.03511208,87768.0,87756.0,0.003565]
[1766674402523,0.03511208,87768.0,87757.0,0.003565]
[1766674402826,0.03511208,87768.0,87758.0,0.003565]
[1766674403022,0.03511208,87768.0,87759.0,0.003565]
[1766674403227,0.03511208,87768.0,87760.0,0.003565]
[1766674403436,0.03511208,87768.0,87761.0,0.003565]
[1766674403736,0.03511208,87768.0,87762.0,0.003565]
[1766674403940,0.03511208,87768.0,87763.0,0.003565]
[1766674404133,0.03511208,87768.0,87764.0,0.003565]
[1766674404333,0.03511208,87768.0,87754.0,0.0114023]
[1766674405039,0.03511208,87768.0,87756.0,0.011402]
[1766674405234,0.02028167,87768.0,87756.0,0.011402]
[1766674405640,0.00888117,87768.0,87756.0,0.011402]
[1766674405939,0.05708,87771.0,87754.0,0.0114022]
[1766674406139,0.05708,87771.0,87765.0,0.0114007]
[1766674407641,0.05708,87771.0,87762.0,0.0114011]
[1766674408440,0.01157017,87777.0,87762.0,0.0114011]
[1766674408638,0.05708,87773.0,87764.0,0.0114009]
[1766674409037,0.05708,87773.0,87761.0,0.0114013]
[1766674410942,0.04966509,87773.0,87761.0,0.0114013]
[1766674411344,0.04966509,87773.0,87753.0,0.00017087]
[1766674411739,0.04966509,87773.0,87764.0,0.011401]
[1766674412144,0.04966509,87773.0,87753.0,0.06166411]
[1766674412446,0.04966509,87773.0,87763.0,0.0114011]
[1766674413446,0.04966509,87773.0,87753.0,0.06166411]
[1766674413645,0.04966509,87773.0,87753.0,0.00017087]
[1766674413841,0.04966509,87773.0,87761.0,0.0114013]
[1766674415644,0.04966509,87773.0,87758.0,0.0114016]
[1766674415949,0.02371256,87773.0,87758.0,0.0114016]
[1766674416351,0.02371256,87773.0,87759.0,0.0035649]
[1766674416644,0.0113999,87772.0,87760.0,0.0035649]
[1766674416842,0.0113999,87772.0,87761.0,0.0035649]
[1766674417041,0.0113999,87772.0,87762.0,0.0035649]
[1766674417341,0.0113999,87772.0,87763.0,0.0035649]
[1766674417542,0.0113999,87772.0,87764.0,0.0035649]
[1766674417743,0.0113999,87772.0,87758.0,0.0114016]
[1766674417942,0.02371256,87773.0,87755.0,0.011402]
[1766674418145,0.02371256,87773.0,87754.0,0.0114022]
[1766674418848,0.0114003,87770.0,87756.0,0.011402]
[1766674419551,0.0114003,87770.0,87758.0,0.0114017]
[1766674419751,0.03511246,87773.0,87758.0,0.0114017]
[1766674421952,0.02028245,87773.0,87758.0,0.0114017]
[1766674424457,0.0114002,87771.0,87758.0,0.0114017]
[1766674424655,0.0114002,87771.0,87755.0,0.011402]
[1766674425757,0.0114002,87771.0,87757.0,0.0114018]
[1766674425953,0.0114002,87770.0,87757.0,0.0114019]
[1766674426260,0.0684799,87773.0,87757.0,0.0114019]
[1766674426759,0.0114001,87771.0,87757.0,0.0114019]
[1766674426960,0.05725087,87773.0,87754.0,0.0114023]
[1766674427558,0.02528445,87772.0,87753.0,0.00017087]
[1766674427761,0.05725087,87773.0,87753.0,0.00017087]
[1766674427960,0.02528545,87772.0,87753.0,0.00017087]
[1766674428261,0.05725087,87773.0,87753.0,0.00017087]
[1766674428552,0.0114007,87767.0,87753.0,0.01157327]
[1766674429659,0.0114007,87767.0,87754.0,0.00356502]
[1766674429843,0.0114007,87767.0,87755.0,0.00356502]
[1766674430048,0.0114007,87767.0,87753.0,0.01157327]
[1766674431460,0.05725087,87773.0,87755.0,0.0114021]
[1766674433263,0.0114003,87770.0,87755.0,0.0114021]
[1766674435764,0.0114005,87768.0,87755.0,0.0114021]
[1766674435963,0.05725087,87773.0,87753.0,0.00017087]
[1766674436462,0.0114005,87768.0,87754.0,0.0114022]
[1766674440064,0.05725087,87773.0,87754.0,0.0114022]
[1766674440265,0.0114005,87768.0,87754.0,0.0114022]
[1766674441064,0.05725087,87773.0,87754.0,0.0114022]
[1766674441267,0.0114005,87768.0,87754.0,0.0114022]
[1766674442054,0.0114008,87766.0,87755.0,0.00356502]
[1766674442360,0.0114008,87766.0,87756.0,0.00356502]
[1766674442562,0.0114004,87769.0,87757.0,0.00356502]
[1766674442763,0.0114004,87769.0,87758.0,0.00356502]
[1766674442963,0.0114004,87769.0,87759.0,0.00356502]
[1766674443164,0.0114004,87769.0,87760.0,0.00356502]
[1766674443363,0.0114004,87769.0,87761.0,0.00356502]
[1766674443564,0.0114004,87769.0,87762.0,0.00356502]
[1766674443768,0.0114004,87769.0,87763.0,0.00356502]
[1766674444065,0.0114004,87769.0,87764.0,0.00356502]
[1766674444366,0.05725087,87773.0,87765.0,2e-08]
[1766674444568,0.0114003,87770.0,87754.0,0.0114022]
[1766674444764,0.0114005,87768.0,87754.0,0.0114022]
[1766674445866,0.05725087,87773.0,87754.0,0.0114022]
[1766674446070,0.02513062,87772.0,87754.0,0.0114022]
[1766674446365,0.05725087,87773.0,87754.0,0.0114022]
[1766674446567,0.02513082,87772.0,87754.0,0.0114022]
[1766674446768,0.05725087,87773.0,87754.0,0.0114022]
[1766674446975,0.02513082,87772.0,87754.0,0.0114022]
[1766674447169,0.0114004,87769.0,87754.0,0.0114022]
[1766674447361,0.05725087,87773.0,87754.0,0.0114022]
[1766674447665,0.02513112,87772.0,87754.0,0.0114022]
[1766674447968,0.05725087,87773.0,87754.0,0.0114022]
[1766674448158,0.0114004,87769.0,87754.0,0.0114022]
[1766674449868,0.0114004,87769.0,87756.0,0.011402]
[1766674450069,0.06865067,87773.0,87760.0,0.0114015]
[1766674450270,0.06865067,87773.0,87759.0,0.0114015]
[1766674450457,0.0114001,87771.0,87759.0,0.0114015]
[1766674450766,0.0114001,87771.0,87756.0,0.011402]
[1766674450970,0.05725087,87773.0,87754.0,0.06149324]
[1766674451155,0.0114007,87766.0,87753.0,0.06166411]
[1766674451354,0.0114007,87766.0,87754.0,0.0114023]
[1766674451557,0.0114004,87769.0,87754.0,0.0114023]
[1766674453169,0.0114004,87769.0,87756.0,0.011402]
[1766674453469,0.05725087,87773.0,87757.0,0.0114018]
[1766674453771,0.05725087,87773.0,87753.0,0.06166411]
[1766674454171,0.05725087,87773.0,87754.0,0.06149324]
[1766674454373,0.05708,87772.0,87754.0,0.06149324]
[1766674454572,0.05708,87772.0,87755.0,0.06149324]
[1766674454771,0.00017087,87773.0,87755.0,0.06149324]
[1766674455972,0.04966517,87778.0,87755.0,0.06149324]
[1766674456278,0.02512997,87777.0,87756.0,0.00356482]
[1766674456577,0.02512997,87776.0,87757.0,0.00356482]
[1766674456768,0.02512997,87775.0,87758.0,0.00356482]
[1766674456969,0.00017087,87775.0,87759.0,0.00356482]
[1766674457178,0.00017087,87775.0,87762.0,0.0114011]
[1766674457374,0.00017087,87775.0,87763.0,0.00356482]
[1766674457575,0.00017087,87775.0,87764.0,0.00356482]
[1766674457874,0.00017087,87775.0,87765.0,0.00356482]
[1766674458074,0.00017087,87775.0,87766.0,0.00356482]
[1766674458266,0.00017087,87775.0,87767.0,0.00356482]
[1766674458465,0.00017087,87775.0,87768.0,0.00356482]
[1766674458675,0.00017087,87775.0,87769.0,0.00356482]
[1766674458875,0.00017087,87775.0,87770.0,0.00356482]
[1766674459075,0.00017087,87775.0,87771.0,0.00356482]
[1766674459275,0.00017087,87775.0,87764.0,0.0114009]
[1766674463882,0.00017087,87775.0,87755.0,0.06149324]
[1766674465179,0.00017087,87775.0,87765.0,0.0114007]
[1766674466078,0.04612869,87777.0,87765.0,0.0114007]
[1766674466279,0.02512277,87776.0,87765.0,0.0114007]
[1766674466480,0.02512277,87775.0,87765.0,0.0114007]
[1766674466681,0.04612869,87777.0,87765.0,0.0114007]
[1766674466876,0.0251228,87776.0,87765.0,0.0114007]
[1766674467081,0.04612869,87777.0,87765.0,0.0114007]
[1766674467285,0.02512252,87776.0,87765.0,0.0114007]
[1766674467470,0.02512252,87775.0,87760.0,0.0856268]
[1766674467675,0.04612869,87777.0,87762.0,0.0114011]
[1766674467872,0.02512274,87776.0,87764.0,0.0114009]
[1766674468070,0.04612869,87777.0,87766.0,0.0114007]
[1766674468285,0.02512256,87776.0,87766.0,0.0114007]
[1766674468587,0.04612869,87777.0,87766.0,0.0114007]
[1766674468786,0.02512254,87776.0,87766.0,0.0114007]
[1766674468983,0.04612869,87777.0,87766.0,0.0114007]
[1766674469178,0.02512254,87776.0,87766.0,0.0114007]
[1766674469492,0.04612869,87777.0,87766.0,0.0114007]
[1766674469685,0.02510477,87776.0,87766.0,0.0114007]
[1766674469886,0.04612869,87777.0,87766.0,0.0114007]
[1766674470077,0.02510476,87776.0,87766.0,0.0114007]
[1766674470277,0.04612869,87777.0,87766.0,0.0114007]
[1766674470479,0.02510472,87776.0,87766.0,0.0114007]
[1766674470681,0.04612869,87777.0,87766.0,0.0114007]
[1766674470880,0.02510472,87776.0,87766.0,0.0114007]
[1766674471177,0.04612869,87777.0,87767.0,0.00356475]
[1766674471380,0.04612869,87777.0,87766.0,0.0114007]
[1766674471381,0.0113994,87776.0,87768.0,0.00356475]
[1766674471587,0.04612869,87777.0,87769.0,0.00356475]
[1766674471886,0.04612869,87777.0,87770.0,0.00356475]
[1766674472086,0.04612869,87777.0,87771.0,0.00356475]
[1766674472287,0.04612869,87777.0,87772.0,0.00356475]
[1766674472586,0.04612869,87777.0,87773.0,0.00356475]
[1766674472886,0.04612869,87777.0,87774.0,4.75e-06]
[1766674473187,0.04612869,87777.0,87764.0,0.0114009]
[1766674473586,0.04612869,87777.0,87756.0,0.011402]
[1766674473772,0.04612869,87777.0,87763.0,0.0114011]
[1766674475386,0.04612869,87777.0,87764.0,0.0114009]
[1766674475885,0.0350065,87777.0,87764.0,0.0114009]
[1766674483095,0.02508165,87776.0,87764.0,0.0114009]
[1766674483393,0.0350065,87777.0,87764.0,0.0114009]
[1766674483692,0.02508312,87776.0,87764.0,0.0114009]
[1766674483992,0.0350065,87777.0,87764.0,0.0114009]
[1766674484291,0.02508311,87776.0,87764.0,0.0114009]
[1766674484499,0.0350065,87777.0,87764.0,0.0114009]
[1766674484693,0.02508421,87776.0,87765.0,0.00356477]
[1766674484994,0.0350065,87777.0,87766.0,0.00356477]
[1766674485193,0.02508421,87776.0,87767.0,0.00356477]
[1766674485394,0.0350065,87777.0,87768.0,0.00356477]
[1766674485596,0.02508423,87776.0,87769.0,0.00356477]
[1766674485795,0.0350065,87777.0,87770.0,0.00356477]
[1766674485994,0.00654743,87776.0,87771.0,0.00356477]
[1766674486194,0.0350065,87777.0,87772.0,0.00356477]
[1766674486394,0.0350065,87777.0,87773.0,0.00356477]
[1766674486594,0.0350065,87777.0,87766.0,0.0114007]
[1766674487395,0.0350065,87777.0,87757.0,0.06149324]
[1766674487895,0.0350065,87777.0,87765.0,0.0114008]
[1766674488600,0.0350065,87777.0,87756.0,0.07289524]
[1766674488788,0.0350065,87777.0,87756.0,0.06149324]
[1766674489295,0.0350065,87777.0,87766.0,0.0114006]
[1766674492802,0.0350065,87777.0,87765.0,0.0114008]
[1766674494504,0.0350065,87777.0,87764.0,0.0114009]
[1766674496005,0.02388441,87777.0,87764.0,0.0114009]
[1766674497103,0.03528371,87777.0,87764.0,0.0114009]
[1766674498006,0.02500477,87776.0,87765.0,0.0114008]
[1766674498206,0.02388441,87777.0,87765.0,0.0114008]
[1766674498407,0.02500475,87776.0,87765.0,0.0114008]
[1766674498603,0.02388441,87777.0,87766.0,0.00356477]
[1766674498804,0.02500475,87776.0,87767.0,0.00356477]
[1766674499005,0.02388441,87777.0,87768.0,0.00356477]
[1766674499304,0.02500475,87776.0,87769.0,0.00356477]
[1766674499602,0.02388441,87777.0,87770.0,0.00356477]
[1766674499803,0.02497498,87776.0,87771.0,0.00356477]
[1766674500003,0.02497498,87776.0,87765.0,0.0114008]
[1766674500004,0.02388441,87777.0,87765.0,0.0114008]
[1766674500205,0.02497497,87776.0,87765.0,0.0114008]
[1766674500405,0.02388441,87777.0,87765.0,0.0114008]
[1766674500607,0.02497494,87776.0,87765.0,0.0114008]
[1766674500908,0.02388441,87777.0,87765.0,0.0114008]
[1766674501109,0.02497494,87776.0,87765.0,0.0114008]
[1766674501308,0.01646968,87777.0,87765.0,0.0114008]
[1766674501511,0.02497502,87776.0,87764.0,0.0114009]
[1766674501701,0.01646968,87777.0,87764.0,0.0114009]
[1766674501902,0.02497502,87776.0,87764.0,0.0114009]
[1766674502104,0.0113995,87776.0,87756.0,0.06149324]
[1766674502302,0.024975,87775.0,87765.0,0.0114008]
[1766674502503,0.01646968,87777.0,87765.0,0.0114008]
[1766674502803,0.02497501,87776.0,87765.0,0.0114008]
[1766674503101,0.01646968,87777.0,87765.0,0.0114008]
[1766674503301,0.02497498,87776.0,87765.0,0.0114008]
[1766674503502,0.01646968,87777.0,87765.0,0.0114008]
[1766674503810,0.024975,87776.0,87765.0,0.0114008]
[1766674504013,0.01646968,87777.0,87765.0,0.0114008]
[1766674504211,0.024975,87776.0,87767.0,0.0114005]
[1766674504509,0.01646968,87777.0,87767.0,0.0114005]
[1766674504698,0.02497511,87776.0,87767.0,0.0114005]
[1766674504900,0.01646968,87777.0,87753.0,0.06166411]
[1766674505210,0.01646968,87777.0,87753.0,0.00017087]
[1766674505912,0.01646968,87777.0,87763.0,0.011401]
[1766674506109,0.00534758,87777.0,87763.0,0.011401]
[1766674506298,0.01674688,87777.0,87763.0,0.011401]
[1766674507111,0.0113996,87775.0,87762.0,0.0114012]
[1766674507311,0.01674688,87777.0,87753.0,0.00017087]
[1766674507507,0.01674688,87777.0,87763.0,0.0114011]
[1766674507810,0.0113997,87775.0,87763.0,1.1e-06]
[1766674509906,0.00534758,87777.0,87763.0,0.0114022]
[1766674510112,0.00534758,87777.0,87763.0,1.1e-06]
[1766674510819,0.0113997,87774.0,87763.0,1.1e-06]
[1766674512016,0.0113997,87774.0,87764.0,0.00356477]
[1766674512213,0.0113997,87774.0,87765.0,0.00356477]
[1766674512407,0.0113997,87774.0,87766.0,0.00356477]
[1766674512714,0.0113997,87774.0,87767.0,4.77e-06]
[1766674512916,0.0113997,87774.0,87763.0,1.1e-06]
[1766674513213,0.00534758,87777.0,87763.0,1.1e-06]
[1766674513415,0.02497543,87776.0,87763.0,1.1e-06]
[1766674513616,0.0114004,87769.0,87763.0,1.1e-06]
[1766674513807,0.0114,87772.0,87763.0,1.1e-06]
[1766674516119,0.05708,87774.0,87763.0,1.1e-06]
[1766674516418,0.0114,87772.0,87763.0,1.1e-06]
[1766674519612,0.0114002,87770.0,87763.0,1.1e-06]
[1766674522521,0.0113999,87772.0,87763.0,1.1e-06]
[1766674524833,0.0113999,87772.0,87764.0,0.00356492]
[1766674525023,0.0113999,87772.0,87765.0,0.00356492]
[1766674525225,0.0113999,87772.0,87766.0,0.00356492]
[1766674525525,0.0113999,87772.0,87767.0,0.00356492]
[1766674525723,0.0113999,87772.0,87768.0,0.00356492]
[1766674525924,0.0113999,87772.0,87769.0,2e-08]
[1766674526226,0.05708,87774.0,87763.0,1.1e-06]
[1766674527232,0.0113999,87772.0,87763.0,1.1e-06]
[1766674533341,0.05708,87774.0,87763.0,1.1e-06]
[1766674534248,0.0114002,87770.0,87763.0,1.1e-06]
[1766674536044,0.05708,87774.0,87763.0,1.1e-06]
[1766674536744,0.0114002,87771.0,87763.0,1.1e-06]
[1766674537846,0.0114002,87771.0,87764.0,0.00356492]
[1766674538046,0.0114002,87771.0,87765.0,0.00356492]
[1766674538245,0.0114002,87771.0,87766.0,0.00356492]
[1766674538446,0.0114002,87771.0,87767.0,2e-08]
[1766674538647,0.05708,87779.0,87763.0,1.1e-06]
[1766674538844,0.02494495,87778.0,87763.0,1.1e-06]
[1766674539043,0.0113997,87774.0,87763.0,1.1e-06]
[1766674539243,0.0113996,87775.0,87763.0,1.1e-06]
[1766674539450,0.0113992,87778.0,87763.0,1.1e-06]
[1766674539639,0.0113994,87776.0,87763.0,1.1e-06]
[1766674539844,0.0113997,87774.0,87763.0,1.1e-06]
[1766674540147,0.0113997,87774.0,87764.0,0.01139]
[1766674540650,0.0113994,87777.0,87764.0,0.01139]
[1766674540941,0.0249457,87776.0,87764.0,0.01139]
[1766674541146,0.0363453,87775.0,87764.0,0.01139]
[1766674541352,0.0113996,87775.0,87764.0,0.01139]
[1766674542450,0.05708,87779.0,87764.0,0.01139]
[1766674542651,0.0249463,87778.0,87764.0,0.01139]
[1766674542851,0.0249463,87777.0,87764.0,0.01139]
[1766674543049,0.0113998,87774.0,87764.0,0.01139]
[1766674543352,0.05708,87779.0,87764.0,0.01139]
[1766674543550,0.0114004,87769.0,87763.0,1.1e-06]
[1766674543949,0.05708,87779.0,87763.0,1.1e-06]
[1766674543950,0.0114009,87765.0,87763.0,1.1e-06]
[1766674544349,0.0114005,87768.0,87763.0,1.1e-06]
[1766674546152,0.0114003,87769.0,87763.0,1.1e-06]
[1766674547554,0.0114,87772.0,87763.0,1.1e-06]
[1766674549248,0.0114002,87770.0,87763.0,1.1e-06]
[1766674550358,0.0114002,87770.0,87764.0,0.00356494]
[1766674550560,0.0114002,87770.0,87765.0,4.94e-06]
[1766674550859,0.0114002,87770.0,87763.0,1.1e-06]
[1766674551865,0.0113999,87773.0,87763.0,1.1e-06]
[1766674552266,0.0114001,87771.0,87763.0,1.1e-06]
[1766674554268,0.0113998,87774.0,87763.0,1.1e-06]
[1766674555258,0.0113993,87777.0,87763.0,1.1e-06]
[1766674555462,0.02494541,87776.0,87763.0,1.1e-06]
[1766674555664,0.02494541,87775.0,87763.0,1.1e-06]
[1766674555865,0.02494541,87774.0,87763.0,1.1e-06]
[1766674556065,0.05708,87779.0,87763.0,1.1e-06]
[1766674556264,0.0113993,87777.0,87763.0,1.1e-06]
[1766674556464,0.02494498,87776.0,87763.0,1.1e-06]
[1766674556665,0.03634458,87775.0,87763.0,1.1e-06]
[1766674556965,0.02494498,87774.0,87763.0,1.1e-06]
[1766674557164,0.0113996,87775.0,87763.0,1.1e-06]
[1766674557364,0.02494484,87774.0,87763.0,1.1e-06]
[1766674557564,0.0113996,87775.0,87763.0,1.1e-06]
[1766674557768,0.02494473,87774.0,87763.0,1.1e-06]
[1766674557968,0.0113996,87775.0,87763.0,1.1e-06]
[1766674558171,0.02494473,87774.0,87763.0,1.1e-06]
[1766674558373,0.0113996,87775.0,87763.0,1.1e-06]
[1766674558566,0.02494462,87774.0,87763.0,1.1e-06]
[1766674558773,0.0113996,87775.0,87763.0,1.1e-06]
[1766674558973,0.02494462,87774.0,87763.0,1.1e-06]
[1766674559172,0.0113996,87775.0,87763.0,1.1e-06]
[1766674559373,0.02494452,87774.0,87763.0,1.1e-06]
[1766674559573,0.0113996,87775.0,87763.0,1.1e-06]
[1766674559773,0.02493546,87774.0,87763.0,1.1e-06]
[1766674559975,0.02493546,87773.0,87763.0,1.1e-06]
[1766674560171,0.05708,87779.0,87763.0,1.1e-06]
[1766674560372,0.02493534,87778.0,87763.0,1.1e-06]
[1766674560572,0.02493534,87777.0,87763.0,1.1e-06]
[1766674560776,0.02493534,87776.0,87763.0,1.1e-06]
[1766674560967,0.02493534,87775.0,87763.0,1.1e-06]
[1766674561168,0.02493534,87774.0,87763.0,1.1e-06]
[1766674561369,0.0113998,87773.0,87763.0,1.1e-06]
[1766674562581,0.0113998,87773.0,87764.0,0.00356486]
[1766674562778,0.0113998,87773.0,87765.0,0.00356486]
[1766674563077,0.0113998,87773.0,87766.0,0.00356486]
[1766674563283,0.0113998,87773.0,87767.0,0.00356486]
[1766674563577,0.0113998,87773.0,87768.0,0.00356486]
[1766674563777,0.0113998,87773.0,87769.0,0.00356486]
[1766674563980,0.0113998,87773.0,87770.0,6e-08]
[1766674564277,0.0113998,87773.0,87763.0,1.1e-06]
[1766674565776,0.05708,87779.0,87763.0,1.1e-06]
[1766674566082,0.01381276,87778.0,87763.0,1.1e-06]
[1766674566280,0.05708,87779.0,87763.0,1.1e-06]
[1766674566883,0.0113992,87778.0,87754.0,0.06154682]
[1766674567084,0.0114,87772.0,87756.0,0.011402]
[1766674567282,0.05708,87771.0,87753.0,0.06171769]
[1766674568184,0.05708,87771.0,87757.0,0.0114018]
[1766674568784,0.05708,87771.0,87753.0,0.06171769]
[1766674569283,0.05708,87771.0,87760.0,0.0114015]
[1766674575891,0.05708,87771.0,87761.0,0.00356491]
[1766674576090,0.04595746,87771.0,87762.0,0.00356491]
[1766674576290,0.04595746,87771.0,87763.0,0.00356491]
[1766674576490,0.04595746,87771.0,87764.0,0.00356491]
[1766674576692,0.04595746,87771.0,87765.0,0.00356491]
[1766674576895,0.04595746,87771.0,87766.0,0.00356491]
[1766674577084,0.04595746,87771.0,87767.0,0.00356491]
[1766674577284,0.04595746,87771.0,87768.0,0.00356491]
[1766674577484,0.0114002,87770.0,87769.0,4.91e-06]
[1766674578296,0.0114002,87770.0,87757.0,0.0114018]
[1766674579194,0.04595746,87771.0,87757.0,0.0114018]
[1766674580295,0.05735756,87771.0,87757.0,0.0114018]
[1766674582987,0.05735756,87771.0,87755.0,0.0114021]
[1766674583197,0.05735756,87771.0,87755.0,0.07294892]
[1766674584297,0.04595746,87771.0,87755.0,0.06154682]
[1766674584498,0.05735756,87771.0,87756.0,0.0114019]
[1766674589505,0.04595746,87771.0,87758.0,0.0114017]
[1766674590609,0.04595746,87771.0,87755.0,0.06154682]
[1766674590794,0.04595746,87771.0,87760.0,0.0114014]
[1766674592404,0.0113994,87776.0,87760.0,0.0114014]
[1766674592606,0.0113997,87774.0,87760.0,0.0114014]
[1766674596207,0.08563749,87780.0,87757.0,0.0114018]
[1766674596406,0.02487205,87779.0,87757.0,0.0114018]
[1766674596704,0.02487205,87778.0,87757.0,0.0114018]
[1766674596896,0.02487205,87777.0,87757.0,0.0114018]
[1766674597205,0.0113998,87773.0,87757.0,0.0114018]
[1766674599302,0.0113997,87774.0,87753.0,0.00017087]
[1766674600104,0.0114,87772.0,87757.0,0.0114018]
[1766674600501,0.06848,87772.0,87759.0,0.0114016]
[1766674604703,0.04106087,87784.0,87755.0,0.0114021]
[1766674604902,0.04106087,87784.0,87754.0,0.06154682]
[1766674604903,0.0113989,87781.0,87756.0,0.06154682]
[1766674605100,0.02487373,87780.0,87756.0,0.06154682]
[1766674605406,0.0113992,87778.0,87761.0,0.0114013]
[1766674605707,0.02487373,87777.0,87761.0,0.0114013]
[1766674605904,0.0113992,87778.0,87761.0,0.0114013]
[1766674606609,0.0113992,87778.0,87763.0,0.011401]
[1766674607511,0.0113988,87781.0,87763.0,0.011401]
[1766674607712,0.02486647,87780.0,87763.0,0.011401]
[1766674608009,0.02486647,87779.0,87763.0,0.011401]
[1766674608209,0.02486647,87778.0,87763.0,0.011401]
[1766674608413,0.05708,87783.0,87757.0,0.06154682]
[1766674608712,0.03626425,87782.0,87767.0,0.0114005]
[1766674608907,0.02486555,87781.0,87767.0,0.0114005]
[1766674609210,0.02486555,87780.0,87767.0,0.0114005]
[1766674609410,0.02486555,87779.0,87767.0,0.0114005]
[1766674609712,0.02486555,87778.0,87767.0,0.0114005]
[1766674609912,0.0113987,87782.0,87767.0,0.0114005]
[1766674610113,0.02486473,87781.0,87767.0,0.0114005]
[1766674610412,0.02486473,87780.0,87767.0,0.0114005]
[1766674610595,0.02486473,87779.0,87767.0,0.0114005]
[1766674610798,0.02486473,87778.0,87767.0,0.0114005]
[1766674610998,0.0113987,87782.0,87767.0,0.0114005]
[1766674611214,0.02486406,87781.0,87767.0,0.0114005]
[1766674611410,0.02486406,87780.0,87767.0,0.0114005]
[1766674611610,0.02486406,87779.0,87767.0,0.0114005]
[1766674611912,0.02486406,87778.0,87767.0,0.0114005]
[1766674612208,0.0113987,87782.0,87767.0,0.0114005]
[1766674612413,0.02486296,87781.0,87767.0,0.0114005]
[1766674612612,0.02486296,87780.0,87767.0,0.0114005]
[1766674612811,0.02486296,87779.0,87767.0,5e-07]
[1766674612997,0.02486296,87778.0,87767.0,5e-07]
[1766674613202,0.0113989,87780.0,87767.0,5e-07]
[1766674613401,0.02486255,87779.0,87767.0,5e-07]
[1766674613700,0.02486255,87778.0,87767.0,5e-07]
[1766674613901,0.0113989,87780.0,87767.0,5e-07]
[1766674614101,0.02486255,87779.0,87767.0,5e-07]
[1766674614316,0.02486255,87778.0,87767.0,0.0114011]
[1766674614514,0.0113987,87782.0,87767.0,0.0114011]
[1766674614813,0.02486224,87781.0,87767.0,0.0114011]
[1766674615013,0.02486224,87780.0,87767.0,0.0114011]
[1766674615316,0.02486224,87779.0,87767.0,5e-07]
[1766674615510,0.02486224,87778.0,87767.0,5e-07]
[1766674615822,0.011399,87780.0,87767.0,5e-07]
[1766674616013,0.02486198,87779.0,87767.0,5e-07]
[1766674616213,0.02486198,87778.0,87767.0,5e-07]
[1766674616414,0.011399,87780.0,87767.0,5e-07]
[1766674616713,0.02486182,87779.0,87767.0,5e-07]
[1766674616915,0.02486182,87778.0,87767.0,5e-07]
[1766674617215,0.011399,87780.0,87767.0,5e-07]